fUST/lending_fUST_20240613
["ID","MTS","AMOUNT","RATE_DAILY","PERIOD"]
[329313182,1718236255471,-3855.23,0.0001726,2]
[329313183,1718236255483,-169.004262,0.0001726,2]
[329313184,1718236255495,-500.0,0.0001726,2]
[329313185,1718236255508,-500.0,0.0001726,2]
[329313186,1718236255532,-500.0,0.0001726,2]
[329313187,1718236255544,-500.0,0.0001726,2]
[329313188,1718236255557,-1497.84,0.0001726,2]
[329313189,1718236255573,-500.0,0.0001726,2]
[329313190,1718236255613,-500.0,0.0001726,2]
[329313191,1718236255635,-616.66,0.0001726,2]
[329313192,1718236255657,-500.0,0.0001726,2]
[329313193,1718236255669,-725.75,0.0001726,2]
[329313194,1718236255679,-369.19017065,0.0001726,2]
[329313195,1718236255692,-1179.17,0.0001726,2]
[329313196,1718236255712,-567.72,0.0001726,2]
[329313197,1718236255731,-500.0,0.0001726,2]
[329313198,1718236255743,-500.0,0.0001726,2]
[329313199,1718236255757,-167.738844,0.0001726,2]
[329313200,1718236255771,-167.738844,0.0001726,2]
[329313201,1718236255782,-500.0,0.0001726,2]
[329313202,1718236255792,-823.8,0.0001726,2]
[329313203,1718236255803,-167.738844,0.0001726,2]
[329313204,1718236255813,-167.738844,0.0001726,2]
[329313205,1718236255823,-500.0,0.0001726,2]
[329313206,1718236255834,-611.74,0.0001726,2]
[329313207,1718236255844,-501.43,0.0001726,2]
[329313208,1718236255854,-500.0,0.0001726,2]
[329313209,1718236255864,-500.0,0.0001726,2]
[329313210,1718236255874,-500.0,0.0001726,2]
[329313211,1718236255884,-1180.25,0.0001726,2]
[329313212,1718236256008,-500.0,0.0001726,2]
[329313213,1718236256023,-2564.61,0.0001726,2]
[329313214,1718236256034,-500.0,0.0001726,2]
[329313215,1718236256044,-635.04,0.0001726,2]
[329313216,1718236256053,-5777.80666532,0.00017297,2]
[329313217,1718236256064,-169.004262,0.00017297,2]
[329313218,1718236256075,-169.004262,0.00017297,2]
[329313219,1718236256085,-287.200125,0.00017342,2]
[329313220,1718236256096,-420.0,0.00017433,2]
[329313221,1718236256106,-662.25,0.00017532,2]
[329313222,1718236256120,-621.67,0.00017533,2]
[329313223,1718236256130,-662.25,0.00017533,2]
[329313224,1718236256140,-500.0,0.00017534,2]
[329313225,1718236256149,-151.0,0.00017534,2]
[329313226,1718236256160,-500.0,0.00017534,2]
[329313227,1718236256170,-641.56348286,0.00017534,2]
[329313228,1718236256180,-500.0,0.00017534,2]
[329313229,1718236256190,-470.71,0.00017534,2]
[329313230,1718236256202,-500.0,0.00017534,2]
[329313231,1718236256212,-500.0,0.00017534,2]
[329313232,1718236256222,-500.0,0.00017534,2]
[329313233,1718236256231,-500.0,0.00017534,2]
[329313234,1718236256241,-173.82094932,0.00017534,2]
[329313235,1718236256250,-500.0,0.00017534,2]
[329313236,1718236256260,-500.0,0.00017534,2]
[329313237,1718236256269,-500.0,0.00017534,2]
[329313238,1718236256279,-500.0,0.00017534,2]
[329313239,1718236256288,-500.0,0.00017534,2]
[329313240,1718236256302,-500.0,0.00017534,2]
[329313241,1718236256312,-500.0,0.00017534,2]
[329313242,1718236256322,-535.48,0.00017534,2]
[329313243,1718236256332,-500.0,0.00017534,2]
[329313244,1718236256341,-500.0,0.00017534,2]
[329313245,1718236256351,-500.0,0.00017534,2]
[329313246,1718236256361,-644.6,0.00017534,2]
[329313247,1718236256371,-500.0,0.00017534,2]
[329313248,1718236256381,-521.92,0.00017534,2]
[329313249,1718236256392,-712.9,0.00017534,2]
[329313250,1718236256404,-500.0,0.00017534,2]
[329313251,1718236256416,-500.0,0.00017534,2]
[329313252,1718236256426,-500.0,0.00017534,2]
[329313253,1718236256436,-500.0,0.00017534,2]
[329313254,1718236256446,-500.0,0.00017534,2]
[329313255,1718236256456,-659.45,0.00017534,2]
[329313256,1718236256466,-500.0,0.00017534,2]
[329313257,1718236256476,-500.0,0.00017534,2]
[329313258,1718236256492,-2422.11,0.00017534,2]
[329313259,1718236256501,-500.0,0.00017534,2]
[329313260,1718236256512,-500.0,0.00017534,2]
[329313261,1718236256522,-1114.91,0.00017534,2]
[329313262,1718236256532,-527.6,0.00017534,2]
[329313263,1718236256542,-500.0,0.00017534,2]
[329313264,1718236256551,-6530.14,0.00017534,2]
[329313265,1718236256569,-653.25,0.00017534,2]
[329313266,1718236256579,-500.0,0.00017534,2]
[329313267,1718236256589,-500.0,0.00017534,2]
[329313268,1718236256599,-500.0,0.00017534,2]
[329313269,1718236256629,-3053.46,0.00017534,2]
[329313270,1718236256644,-500.0,0.00017534,2]
[329313271,1718236256656,-1574.22,0.00017534,2]
[329313272,1718236256669,-500.0,0.00017534,2]
[329313273,1718236256681,-500.0,0.00017534,2]
[329313274,1718236256692,-1923.16,0.00017534,2]
[329313275,1718236256705,-500.0,0.00017534,2]
[329313276,1718236256716,-666.97,0.00017534,2]
[329313277,1718236256727,-500.0,0.00017534,2]
[329313278,1718236256739,-635.54,0.00017534,2]
[329313279,1718236256755,-500.0,0.00017534,2]
[329313280,1718236256769,-500.0,0.00017534,2]
[329313281,1718236256781,-592.9,0.00017534,2]
[329313282,1718236256795,-532.69703424,0.00017534,2]
[329313283,1718236256807,-169.004262,0.00017534,2]
[329313284,1718236256819,-3855.23,0.00017534,2]
[329313285,1718236256831,-169.004261,0.00017534,2]
[329313286,1718236256843,-500.0,0.00017534,2]
[329313287,1718236256855,-500.0,0.00017534,2]
[329313288,1718236256865,-475.87266634,0.00017534,2]
[329313289,1718236256876,-1497.84,0.00017534,2]
[329313290,1718236256887,-500.0,0.00017534,2]
[329313291,1718236256898,-500.0,0.00017534,2]
[329313292,1718236256909,-616.66,0.00017534,2]
[329313293,1718236256921,-500.0,0.00017534,2]
[329313294,1718236256932,-725.75,0.00017534,2]
[329313295,1718236256945,-1179.17,0.00017534,2]
[329313296,1718236256957,-567.72,0.00017534,2]
[329313297,1718236256968,-500.0,0.00017534,2]
[329313298,1718236256981,-500.0,0.00017534,2]
[329313299,1718236256995,-167.738844,0.00017534,2]
[329313300,1718236257008,-500.0,0.00017534,2]
[329313301,1718236257019,-823.8,0.00017534,2]
[329313302,1718236257030,-167.738849,0.00017534,2]
[329313303,1718236257040,-393.30660927,0.00017534,2]
[329313304,1718236257050,-611.74,0.00017534,2]
[329313305,1718236257061,-501.43,0.00017534,2]
[329313306,1718236257072,-500.0,0.00017534,2]
[329313307,1718236257082,-500.0,0.00017534,2]
[329313308,1718236257092,-500.0,0.00017534,2]
[329313309,1718236257104,-1180.25,0.00017534,2]
[329313310,1718236257118,-500.0,0.00017534,2]
[329313311,1718236257129,-2564.61,0.00017534,2]
[329313312,1718236257139,-500.0,0.00017534,2]
[329313313,1718236257150,-635.04,0.00017534,2]
[329313314,1718236257162,-292.5693121,0.00017534,2]
[329313315,1718236257175,-292.5693121,0.00017534,2]
[329313316,1718236257185,-292.5693121,0.00017534,2]
[329313317,1718236257200,-292.5693121,0.00017534,2]
[329313318,1718236257210,-292.5693121,0.00017534,2]
[329313319,1718236257221,-292.5693121,0.00017534,2]
[329313320,1718236257232,-5777.80666532,0.00017777,2]
[329313321,1718236257242,-620.07271939,0.00017793,2]
[329313322,1718236257253,-662.25,0.00017807,2]
[329313323,1718236257265,-662.25,0.00017807,2]
[329313324,1718236257277,-151.0,0.00017808,2]
[329313325,1718236257288,-500.0,0.00017808,2]
[329313326,1718236257301,-500.0,0.00017808,2]
[329313327,1718236257312,-500.0,0.00017808,2]
[329313328,1718236257324,-500.0,0.00017808,2]
[329313329,1718236257335,-500.0,0.00017808,2]
[329313330,1718236257346,-500.0,0.00017808,2]
[329313331,1718236257359,-500.0,0.00017808,2]
[329313332,1718236257369,-500.0,0.00017808,2]
[329313333,1718236257379,-500.0,0.00017808,2]
[329313334,1718236257390,-500.0,0.00017808,2]
[329313335,1718236257401,-500.0,0.00017808,2]
[329313336,1718236257412,-535.48,0.00017808,2]
[329313337,1718236257424,-500.0,0.00017808,2]
[329313338,1718236257434,-500.0,0.00017808,2]
[329313339,1718236257445,-644.6,0.00017808,2]
[329313340,1718236257457,-500.0,0.00017808,2]
[329313341,1718236257468,-521.92,0.00017808,2]
[329313342,1718236257479,-712.9,0.00017808,2]
[329313343,1718236257489,-659.45,0.00017808,2]
[329313344,1718236257501,-500.0,0.00017808,2]
[329313345,1718236257514,-2422.11,0.00017808,2]
[329313346,1718236257526,-500.0,0.00017808,2]
[329313347,1718236257538,-500.0,0.00017808,2]
[329313348,1718236257548,-1114.91,0.00017808,2]
[329313349,1718236257558,-527.6,0.00017808,2]
[329313350,1718236257568,-500.0,0.00017808,2]
[329313351,1718236257580,-6530.14,0.00017808,2]
[329313352,1718236257590,-653.25,0.00017808,2]
[329313353,1718236257601,-500.0,0.00017808,2]
[329313354,1718236257629,-500.0,0.00017808,2]
[329313355,1718236257640,-3053.46,0.00017808,2]
[329313356,1718236257653,-500.0,0.00017808,2]
[329313357,1718236257664,-1574.22,0.00017808,2]
[329313358,1718236257677,-500.0,0.00017808,2]
[329313359,1718236257690,-500.0,0.00017808,2]
[329313360,1718236257703,-1923.16,0.00017808,2]
[329313361,1718236257713,-277.83220554,0.00017808,2]
[329313362,1718236257853,-389.13779446,0.00017808,2]
[329313363,1718236257863,-500.0,0.00017808,2]
[329313364,1718236257875,-635.54,0.00017808,2]
[329313365,1718236257887,-500.0,0.00017808,2]
[329313366,1718236257899,-292.98375161,0.00017808,2]
[329313367,1718236257912,-592.9,0.00017808,2]
[329313368,1718236257924,-3855.23,0.00017808,2]
[329313369,1718236257935,-500.0,0.00017808,2]
[329313370,1718236257948,-1497.84,0.00017808,2]
[329313371,1718236257960,-500.0,0.00017808,2]
[329313372,1718236257971,-500.0,0.00017808,2]
[329313373,1718236257981,-616.66,0.00017808,2]
[329313374,1718236257991,-500.0,0.00017808,2]
[329313375,1718236258002,-725.75,0.00017808,2]
[329313376,1718236258012,-1179.17,0.00017808,2]
[329313377,1718236258023,-567.72,0.00017808,2]
[329313378,1718236258033,-500.0,0.00017808,2]
[329313379,1718236258044,-500.0,0.00017808,2]
[329313380,1718236258058,-500.0,0.00017808,2]
[329313381,1718236258069,-823.8,0.00017808,2]
[329313382,1718236258080,-611.74,0.00017808,2]
[329313383,1718236258090,-501.43,0.00017808,2]
[329313384,1718236258102,-500.0,0.00017808,2]
[329313385,1718236258112,-500.0,0.00017808,2]
[329313386,1718236258124,-1180.25,0.00017808,2]
[329313387,1718236258137,-500.0,0.00017808,2]
[329313388,1718236258149,-2564.61,0.00017808,2]
[329313389,1718236258161,-500.0,0.00017808,2]
[329313390,1718236258171,-635.04,0.00017808,2]
[329313391,1718236258182,-1355.61945113,0.00018,2]
[329313392,1718236258193,-31645.38935291,0.00018,2]
[329313393,1718236258208,-249.86864136,0.00018,2]
[329313394,1718236258219,-220.0799272,0.00018,2]
[329313395,1718236258229,-2765.44251206,0.00018,2]
[329313396,1718236258241,-476.69963654,0.00018,2]
[329313397,1718236258252,-420.0060389,0.00018078,2]
[329313398,1718236258264,-315.9680031,0.00018078,2]
[329313399,1718236258274,-662.25,0.00018081,2]
[329313400,1718236258285,-662.25,0.00018081,2]
[329313401,1718236258295,-662.25,0.00018081,2]
[329313402,1718236258306,-662.25,0.00018081,2]
[329313403,1718236258317,-662.25,0.00018081,2]
[329313404,1718236258327,-662.31217393,0.00018081,2]
[329313405,1718236258338,-500.0,0.00018082,2]
[329313406,1718236258348,-500.0,0.00018082,2]
[329313407,1718236258358,-500.0,0.00018082,2]
[329313408,1718236258370,-500.0,0.00018082,2]
[329313409,1718236258383,-500.0,0.00018082,2]
[329313410,1718236258396,-500.0,0.00018082,2]
[329313411,1718236258414,-500.0,0.00018082,2]
[329313412,1718236258425,-535.48,0.00018082,2]
[329313413,1718236258436,-500.0,0.00018082,2]
[329313414,1718236258447,-500.0,0.00018082,2]
[329313415,1718236258473,-644.6,0.00018082,2]
[329313416,1718236258488,-521.92,0.00018082,2]
[329313417,1718236258501,-712.9,0.00018082,2]
[329313418,1718236258512,-659.45,0.00018082,2]
[329313419,1718236258526,-500.0,0.00018082,2]
[329313420,1718236258543,-2422.11,0.00018082,2]
[329313421,1718236258561,-500.0,0.00018082,2]
[329313422,1718236258582,-500.0,0.00018082,2]
[329313423,1718236258593,-1114.91,0.00018082,2]
[329313424,1718236258632,-527.6,0.00018082,2]
[329313425,1718236258647,-463.3030668,0.00018082,2]
[329313426,1718236258694,-36.6969332,0.00018082,2]
[329313427,1718236258714,-1124.34841253,0.00018082,2]
[329313428,1718236258729,-3088.61016769,0.00018082,2]
[329313429,1718236258956,-302.8671087,0.00016438,2]
[329313430,1718236258971,-197.1328913,0.00016438,2]
[329313431,1718236258982,-500.0,0.00016438,2]
[329313432,1718236258996,-500.0,0.00016712,2]
[329313433,1718236259008,-500.0,0.00016712,2]
[329313434,1718236259019,-500.0,0.00016986,2]
[329313435,1718236259030,-446.48349725,0.00016986,2]
[329313436,1718236259043,-2317.18141978,0.00018082,2]
[329313437,1718236259056,-653.25,0.00018082,2]
[329313438,1718236259068,-500.0,0.00018082,2]
[329313439,1718236259081,-500.0,0.00018082,2]
[329313440,1718236259095,-3053.46,0.00018082,2]
[329313441,1718236259113,-500.0,0.00018082,2]
[329313442,1718236259126,-1574.22,0.00018082,2]
[329313443,1718236259138,-500.0,0.00018082,2]
[329313444,1718236259150,-500.0,0.00018082,2]
[329313445,1718236259161,-1923.16,0.00018082,2]
[329313446,1718236259172,-666.97,0.00018082,2]
[329313447,1718236259184,-635.54,0.00018082,2]
[329313448,1718236259199,-592.9,0.00018082,2]
[329313449,1718236259218,-3855.23,0.00018082,2]
[329313450,1718236259230,-1497.84,0.00018082,2]
[329313451,1718236259243,-271.84423605,0.00018082,2]
[329313452,1718236259256,-500.0,0.00018082,2]
[329313453,1718236259271,-616.66,0.00018082,2]
[329313454,1718236259282,-725.75,0.00018082,2]
[329313455,1718236259293,-1179.17,0.00018082,2]
[329313456,1718236259305,-567.72,0.00018082,2]
[329313457,1718236259316,-528.94905643,0.00018082,2]
[329313458,1718236259329,-500.0,0.00018082,2]
[329313459,1718236259340,-823.8,0.00018082,2]
[329313460,1718236259351,-611.74,0.00018082,2]
[329313461,1718236259364,-501.43,0.00018082,2]
[329313462,1718236259376,-500.0,0.00018082,2]
[329313463,1718236259387,-1180.25,0.00018082,2]
[329313464,1718236259399,-2564.61,0.00018082,2]
[329313465,1718236259411,-500.0,0.00018082,2]
[329313466,1718236259423,-635.04,0.00018082,2]
[329313467,1718236259434,-5777.80666532,0.00018256,2]
[329313468,1718236259446,-1555.1808677,0.00018298,2]
[329313469,1718236259458,-500.0,0.00018356,2]
[329313470,1718236259468,-500.0,0.00018356,2]
[329313471,1718236259478,-500.0,0.00018356,2]
[329313472,1718236259492,-500.0,0.00018356,2]
[329313473,1718236259502,-500.0,0.00018356,2]
[329313474,1718236259514,-535.48,0.00018356,2]
[329313475,1718236259526,-247.73006924,0.00018356,2]
[329313476,1718236259537,-644.6,0.00018356,2]
[329313477,1718236259549,-521.92,0.00018356,2]
[329313478,1718236259559,-712.9,0.00018356,2]
[329313479,1718236259569,-659.45,0.00018356,2]
[329313480,1718236259583,-500.0,0.00018356,2]
[329313481,1718236259598,-2242.29747198,0.00018356,2]
[329313482,1718236259637,-179.81252802,0.00018356,2]
[329313483,1718236259651,-500.0,0.00018356,2]
[329313484,1718236259663,-500.0,0.00018356,2]
[329313485,1718236259674,-1114.91,0.00018356,2]
[329313486,1718236259686,-527.6,0.00018356,2]
[329313487,1718236259700,-162.33416399,0.00018356,2]
[329313488,1718236259715,-337.66583601,0.00018356,2]
[329313489,1718236259725,-6530.14,0.00018356,2]
[329313490,1718236259740,-653.25,0.00018356,2]
[329313491,1718236259751,-500.0,0.00018356,2]
[329313492,1718236259763,-500.0,0.00018356,2]
[329313493,1718236259774,-3053.46,0.00018356,2]
[329313494,1718236259785,-500.0,0.00018356,2]
[329313495,1718236259797,-1574.22,0.00018356,2]
[329313496,1718236259809,-500.0,0.00018356,2]
[329313497,1718236259820,-1923.16,0.00018356,2]
[329313498,1718236259830,-666.97,0.00018356,2]
[329313499,1718236259842,-635.54,0.00018356,2]
[329313500,1718236259854,-592.9,0.00018356,2]
[329313501,1718236259865,-3855.23,0.00018356,2]
[329313502,1718236259878,-1497.84,0.00018356,2]
[329313503,1718236259889,-500.0,0.00018356,2]
[329313504,1718236259900,-616.66,0.00018356,2]
[329313505,1718236259912,-725.75,0.00018356,2]
[329313506,1718236259922,-1179.17,0.00018356,2]
[329313507,1718236259933,-567.72,0.00018356,2]
[329313508,1718236259947,-500.0,0.00018356,2]
[329313509,1718236259961,-823.8,0.00018356,2]
[329313510,1718236259973,-611.74,0.00018356,2]
[329313511,1718236259983,-501.43,0.00018356,2]
[329313512,1718236259993,-1180.25,0.00018356,2]
[329313513,1718236260003,-2564.61,0.00018356,2]
[329313514,1718236260033,-500.0,0.00018356,2]
[329313515,1718236260048,-635.04,0.00018356,2]
[329313516,1718236260064,-155.0,0.0001844,2]
[329313517,1718236260077,-606.70222548,0.000185,2]
[329313518,1718236260095,-499.0,0.0001856,2]
[329313519,1718236260112,-150.0,0.0001856,2]
[329313520,1718236260126,-1750.0,0.0001856,2]
[329313521,1718236260139,-166.666666,0.00018575,2]
[329313522,1718236260155,-155.88533814,0.00018628,2]
[329313523,1718236260167,-155.08333146,0.00018629,2]
[329313524,1718236260179,-500.0,0.0001863,2]
[329313525,1718236260193,-500.0,0.0001863,2]
[329313526,1718236260210,-500.0,0.0001863,2]
[329313527,1718236260222,-500.0,0.0001863,2]
[329313528,1718236260239,-500.0,0.0001863,2]
[329313529,1718236260250,-535.48,0.0001863,2]
[329313530,1718236260271,-385.27175837,0.0001863,2]
[329313531,1718236260703,-359.72074136,0.00016438,2]
[329313532,1718236260756,-140.27925864,0.00016438,2]
[329313533,1718236260784,-500.0,0.00016438,2]
[329313534,1718236260795,-500.0,0.00016438,2]
[329313535,1718236260816,-500.0,0.00016712,2]
[329313536,1718236260828,-260.7347276,0.00016712,2]
[329313537,1718236261048,-239.2652724,0.00016712,2]
[329313538,1718236261060,-500.0,0.00016986,2]
[329313539,1718236261071,-500.0,0.00016986,2]
[329313540,1718236261081,-500.0,0.0001726,2]
[329313541,1718236261092,-500.0,0.0001726,2]
[329313542,1718236261103,-500.0,0.00017534,2]
[329313543,1718236261115,-259.32824163,0.0001863,2]
[329313544,1718236261126,-521.92,0.0001863,2]
[329313545,1718236261137,-712.9,0.0001863,2]
[329313546,1718236261148,-659.45,0.0001863,2]
[329313547,1718236261160,-500.0,0.0001863,2]
[329313548,1718236261172,-500.0,0.0001863,2]
[329313549,1718236261186,-500.0,0.0001863,2]
[329313550,1718236261201,-1114.91,0.0001863,2]
[329313551,1718236261214,-527.6,0.0001863,2]
[329313552,1718236261226,-500.0,0.0001863,2]
[329313553,1718236261237,-66.46779156,0.0001863,2]
[329313554,1718236261253,-527.71119533,0.0001863,2]
[329313638,1718237191281,-225.99253865,0.00015417,2]
[329313825,1718237444799,-164.5734904,0.00015415,2]
[329313827,1718237444812,-300.0,0.00015416,2]
[329313830,1718237444824,-14204.622296,0.00015417,2]
[329313834,1718237444838,-10469.38516535,0.00015417,2]
[329313835,1718237444849,-818.4235689,0.00015417,2]
[329313838,1718237444859,-260.9381034,0.00015437,2]
[329313843,1718237444910,-2381.69706727,0.00016338,2]
[329313845,1718237444925,-372.38365105,0.00016436,2]
[329313848,1718237444952,-956.14212237,0.00016436,2]
[329313850,1718237444976,-774.10443301,0.00016436,2]
[329313852,1718237444991,-187.33268178,0.00016436,2]
[329313855,1718237445011,-156.28239737,0.00016436,2]
[329313857,1718237445024,-209.17920224,0.00016436,2]
[329313859,1718237445060,-155.01751066,0.00016436,2]
[329313860,1718237445077,-1387.60271581,0.00016437,2]
[329313862,1718237445093,-500.0,0.00016438,2]
[329313864,1718237445115,-500.0,0.00016438,2]
[329313865,1718237445128,-500.0,0.00016438,2]
[329313866,1718237445151,-500.0,0.00016438,2]
[329313868,1718237445167,-500.0,0.00016438,2]
[329313870,1718237445178,-500.0,0.00016438,2]
[329313871,1718237445190,-500.0,0.00016438,2]
[329313873,1718237445219,-500.0,0.00016438,2]
[329313876,1718237445233,-500.0,0.00016438,2]
[329313878,1718237445250,-586.03506073,0.00016438,2]
[329313880,1718237445274,-500.0,0.00016438,2]
[329313882,1718237445288,-500.0,0.00016438,2]
[329313884,1718237445299,-500.0,0.00016438,2]
[329313885,1718237445319,-500.0,0.00016438,2]
[329313887,1718237445333,-500.0,0.00016438,2]
[329313888,1718237445356,-500.0,0.00016438,2]
[329313889,1718237445367,-500.0,0.00016438,2]
[329313890,1718237445381,-500.0,0.00016438,2]
[329313891,1718237445391,-501.51613761,0.00016438,2]
[329313892,1718237445405,-217.98584315,0.00016438,2]
[329313893,1718237445424,-500.0,0.00016438,2]
[329313894,1718237445452,-500.0,0.00016438,2]
[329313895,1718237445477,-500.0,0.00016438,2]
[329313896,1718237445493,-500.0,0.00016438,4]
[329313897,1718237445504,-364.57345289,0.00016438,2]
[329313898,1718237445515,-500.0,0.00016438,2]
[329313899,1718237445544,-500.0,0.00016438,2]
[329313900,1718237445590,-500.0,0.00016438,2]
[329313901,1718237445613,-500.0,0.00016438,2]
[329313902,1718237445623,-250.0,0.00016438,2]
[329313904,1718237445654,-500.0,0.00016438,2]
[329313906,1718237445677,-500.0,0.00016438,2]
[329313908,1718237445694,-500.0,0.00016438,2]
[329313909,1718237445719,-500.0,0.00016438,2]
[329313911,1718237445741,-500.0,0.00016438,2]
[329313912,1718237445761,-500.0,0.00016438,2]
[329313913,1718237445786,-500.0,0.00016438,2]
[329313914,1718237445819,-500.0,0.00016438,2]
[329313915,1718237445852,-500.0,0.00016438,2]
[329313916,1718237445877,-646.99333079,0.00016438,2]
[329313917,1718237445889,-500.0,0.00016438,2]
[329313918,1718237445902,-500.0,0.00016438,2]
[329313919,1718237445914,-500.0,0.00016438,2]
[329313920,1718237445925,-500.0,0.00016438,2]
[329313921,1718237445940,-500.0,0.00016438,2]
[329313922,1718237445957,-500.0,0.00016438,2]
[329313923,1718237445971,-500.0,0.00016438,2]
[329313924,1718237446000,-500.0,0.00016438,2]
[329313925,1718237446011,-500.0,0.00016438,2]
[329313926,1718237446028,-500.0,0.00016438,2]
[329313927,1718237446040,-315.55547614,0.00016438,2]
[329313928,1718237446067,-500.0,0.00016438,2]
[329313929,1718237446078,-500.0,0.00016438,2]
[329313930,1718237446089,-589.52750579,0.00016438,2]
[329313931,1718237446113,-500.0,0.00016438,2]
[329313932,1718237446124,-470.83296756,0.00016438,2]
[329313933,1718237446135,-500.0,0.00016438,2]
[329313934,1718237446147,-500.0,0.00016438,2]
[329313935,1718237446177,-500.0,0.00016438,2]
[329313936,1718237446189,-500.0,0.00016438,2]
[329313937,1718237446201,-565.15,0.00016438,2]
[329313938,1718237446211,-500.0,0.00016438,2]
[329313939,1718237446223,-502.89719724,0.00016438,2]
[329313940,1718237446234,-500.0,0.00016438,2]
[329313941,1718237446245,-500.0,0.00016438,2]
[329313942,1718237446260,-500.0,0.00016438,2]
[329313943,1718237446272,-500.0,0.00016438,2]
[329313944,1718237446284,-157.14871529,0.00016438,2]
[329313945,1718237446295,-500.0,0.00016438,2]
[329313946,1718237446307,-500.0,0.00016438,2]
[329313947,1718237446320,-500.0,0.00016438,2]
[329313948,1718237446352,-500.0,0.00016438,2]
[329313949,1718237446370,-500.0,0.00016438,2]
[329313951,1718237446391,-500.0,0.00016438,2]
[329313952,1718237446404,-500.0,0.00016438,2]
[329313955,1718237446427,-500.0,0.00016438,2]
[329313957,1718237446437,-500.0,0.00016438,2]
[329313959,1718237446463,-500.0,0.00016438,2]
[329313961,1718237446475,-500.0,0.00016438,2]
[329313963,1718237446492,-514.89471071,0.00016438,2]
[329313965,1718237446506,-500.0,0.00016438,2]
[329313968,1718237446534,-500.0,0.00016438,2]
[329313969,1718237446544,-500.0,0.00016438,2]
[329313971,1718237446563,-500.0,0.00016438,2]
[329313974,1718237446581,-500.0,0.00016438,2]
[329313975,1718237446595,-500.0,0.00016438,2]
[329313977,1718237446609,-501.15983677,0.00016438,2]
[329313979,1718237446620,-500.0,0.00016438,2]
[329313982,1718237446632,-500.0,0.00016438,2]
[329313984,1718237446647,-502.44994939,0.00016438,2]
[329313986,1718237446659,-500.0,0.00016438,2]
[329313988,1718237446681,-627.44428766,0.00016438,2]
[329313990,1718237446710,-500.0,0.00016438,2]
[329313992,1718237446722,-500.0,0.00016438,2]
[329313994,1718237446737,-325.36530476,0.00016438,2]
[329313996,1718237446755,-175.3000794,0.00016438,2]
[329313997,1718237446766,-500.0,0.00016438,2]
[329313999,1718237446784,-500.0,0.00016438,2]
[329314000,1718237446805,-500.0,0.00016438,2]
[329314004,1718237446829,-500.0,0.00016438,2]
[329314006,1718237446845,-500.0,0.00016438,2]
[329314007,1718237446871,-500.0,0.00016438,2]
[329314009,1718237446883,-500.0,0.00016438,2]
[329314011,1718237446896,-500.0,0.00016438,2]
[329314013,1718237446912,-564.553099,0.00016438,2]
[329314015,1718237446933,-500.0,0.00016438,2]
[329314017,1718237446948,-500.0,0.00016438,2]
[329314019,1718237446964,-500.0,0.00016438,2]
[329314021,1718237446975,-500.0,0.00016438,2]
[329314024,1718237447008,-500.0,0.00016438,2]
[329314026,1718237447020,-500.0,0.00016438,2]